bitfinex-derivatives/quotes_BTCF0:USTF0_20251128
["timestamp","ask_amount","ask_price","bid_price","bid_amount"]
[1764312893921,0.4525,91424.0,91423.0,0.04099705]
[1764312894421,0.4525,91424.0,91423.0,0.01835705]
[1764312894617,0.4525,91424.0,91423.0,0.01635705]
[1764312894814,0.4565,91424.0,91423.0,0.01635705]
[1764312895420,0.8173,91424.0,91423.0,0.01635705]
[1764312895613,0.8173,91424.0,91423.0,0.03899705]
[1764312897519,0.8133,91424.0,91423.0,0.03899705]
[1764312897723,0.8173,91424.0,91423.0,0.03899705]
[1764312900224,0.8173,91424.0,91423.0,0.01635705]
[1764312902527,0.8173,91424.0,91423.0,0.06066705]
[1764312906836,0.8133,91424.0,91423.0,0.06066705]
[1764312907036,0.8163,91424.0,91423.0,0.06066705]
[1764312907440,0.8133,91424.0,91423.0,0.06066705]
[1764312907739,0.8163,91424.0,91423.0,0.06066705]
[1764312908931,0.8153,91424.0,91423.0,0.06066705]
[1764312910639,0.8153,91424.0,91423.0,0.01635705]
[1764312911337,0.8153,91424.0,91423.0,0.03893705]
[1764312912039,0.8133,91424.0,91423.0,0.03893705]
[1764312912340,0.8153,91424.0,91423.0,0.03893705]
[1764312912939,0.8153,91424.0,91423.0,0.06060705]
[1764312914547,0.8133,91424.0,91423.0,0.06060705]
[1764312914846,0.8153,91424.0,91423.0,0.06060705]
[1764312917149,0.8133,91424.0,91423.0,0.06060705]
[1764312917450,0.8153,91424.0,91423.0,0.06060705]
[1764312918347,0.8153,91424.0,91423.0,0.01635705]
[1764312918747,0.8153,91424.0,91423.0,0.05922705]
[1764312920150,0.8133,91424.0,91423.0,0.05922705]
[1764312920350,0.8153,91424.0,91423.0,0.05922705]
[1764312923860,0.8163,91424.0,91423.0,0.05922705]
[1764312924455,0.8153,91424.0,91423.0,0.05922705]
[1764312926358,0.8133,91424.0,91423.0,0.05922705]
[1764312926564,0.8163,91424.0,91423.0,0.05922705]
[1764312927467,0.8133,91424.0,91423.0,0.05922705]
[1764312927665,0.8153,91424.0,91423.0,0.05922705]
[1764312929964,0.8163,91424.0,91423.0,0.05922705]
[1764312930257,0.4555,91424.0,91423.0,0.05922705]
[1764312930566,0.8163,91424.0,91423.0,0.05922705]
[1764312931062,0.8153,91424.0,91423.0,0.05922705]
[1764312931569,0.4545,91424.0,91423.0,0.05922705]
[1764312931865,0.8153,91424.0,91423.0,0.05922705]
[1764312932259,0.8153,91424.0,91423.0,0.01635705]
[1764312933961,0.8153,91424.0,91423.0,0.05990705]
[1764312934769,0.8163,91424.0,91423.0,0.05990705]
[1764312936164,0.8153,91424.0,91423.0,0.05990705]
[1764312939675,0.8133,91424.0,91423.0,0.05990705]
[1764312939971,0.8153,91424.0,91423.0,0.05990705]
[1764312940763,0.8133,91424.0,91423.0,0.05990705]
[1764312940965,0.8153,91424.0,91423.0,0.05990705]
[1764312943965,0.8143,91424.0,91423.0,0.05990705]
[1764312946174,0.4333,91424.0,91423.0,0.05990705]
[1764312946376,0.5933,91424.0,91423.0,0.05990705]
[1764312946773,0.77305,91424.0,91423.0,0.05990705]
[1764312946975,0.7843,91424.0,91423.0,0.05990705]
[1764312947673,0.7833,91424.0,91423.0,0.05990705]
[1764312948070,0.3608,91424.0,91423.0,0.05990705]
[1764312948270,0.3908,91424.0,91423.0,0.05990705]
[1764312948470,0.40205,91424.0,91423.0,0.05990705]
[1764312949375,0.76205,91424.0,91423.0,0.05990705]
[1764312950077,0.4508,91424.0,91423.0,0.05990705]
[1764312950673,0.3608,91424.0,91423.0,0.06090705]
[1764312950873,0.3608,91432.0,91431.0,0.0239601]
[1764312951074,0.4908,91432.0,91431.0,0.0675101]
[1764312951379,0.5133,91432.0,91431.0,0.0675101]
[1764312951778,0.8033,91432.0,91431.0,0.0675101]
[1764312953066,0.4233,91432.0,91431.0,0.0675101]
[1764312953467,0.1625,91432.0,91431.0,0.0685101]
[1764312953676,0.15125,91432.0,91431.0,0.0685101]
[1764312954883,0.53652038,91441.0,91440.0,0.067509]
[1764312955181,0.844239,91441.0,91440.0,0.067509]
[1764312955776,0.8333,91441.0,91440.0,0.067509]
[1764312956476,0.8343,91441.0,91440.0,0.067509]
[1764312957470,0.8333,91441.0,91440.0,0.067509]
[1764312958985,0.4735,91441.0,91440.0,0.067509]
[1764312959172,0.484439,91441.0,91439.0,0.0109391]
[1764312959376,0.0225,91440.0,91439.0,0.0544891]
[1764312959585,0.4525,91440.0,91439.0,0.0544891]
[1764312960580,0.4535,91440.0,91439.0,0.0544891]
[1764312964978,0.4525,91440.0,91439.0,0.0544891]
[1764312965186,0.4535,91440.0,91439.0,0.0544891]
[1764312969191,0.0225,91440.0,91439.0,0.0544891]
[1764312969397,0.4025,91440.0,91439.0,0.0544891]
[1764312975598,0.4035,91440.0,91439.0,0.0544891]
[1764312976910,0.4025,91440.0,91439.0,0.0544891]
[1764312977610,0.4035,91440.0,91439.0,0.0544891]
[1764312982215,0.4025,91440.0,91439.0,0.0544891]
[1764312984610,0.4035,91440.0,91439.0,0.0544891]
[1764312985113,0.4025,91440.0,91439.0,0.0544891]
[1764312991317,0.4035,91440.0,91439.0,0.0544891]
[1764312991717,0.4025,91440.0,91439.0,0.0544891]
[1764312992115,0.4025,91440.0,91439.0,0.04355]
[1764312993712,0.4035,91440.0,91439.0,0.04355]
[1764312994712,0.4025,91440.0,91439.0,0.04355]
[1764312995419,0.4035,91440.0,91439.0,0.04355]
[1764312997420,0.4025,91440.0,91439.0,0.04355]
[1764313007218,0.0225,91438.0,91437.0,0.02688038]
[1764313007429,0.4625,91438.0,91437.0,0.02688038]
[1764313007830,0.4625,91438.0,91437.0,0.01594108]
[1764313008018,0.0225,91434.0,91433.0,0.09846726]
[1764313008225,0.0225,91433.0,91432.0,0.3608]
[1764313008425,0.4625,91433.0,91432.0,0.3608]
[1764313008724,0.4625,91433.0,91432.0,0.38253]
[1764313008924,0.4625,91433.0,91432.0,0.40439]
[1764313010330,0.4635,91433.0,91432.0,0.40439]
[1764313010630,0.4635,91433.0,91432.0,0.41993024]
[1764313011228,0.4625,91433.0,91432.0,0.05913024]
[1764313011428,0.4635,91433.0,91432.0,0.01554024]
[1764313011629,0.0225,91424.0,91423.0,0.02189411]
[1764313011822,0.4625,91424.0,91423.0,0.02189411]
[1764313012527,0.473441,91424.0,91423.0,0.02189411]
[1764313012831,0.473441,91424.0,91423.0,0.04375411]
[1764313013628,0.473441,91424.0,91423.0,0.02189411]
[1764313013828,0.475441,91424.0,91423.0,0.02189411]
[1764313014730,0.473441,91424.0,91423.0,0.02189411]
[1764313014932,0.474441,91424.0,91423.0,0.02189411]
[1764313015425,0.474441,91424.0,91423.0,0.03722037]
[1764313016233,0.473441,91424.0,91423.0,0.03722037]
[1764313016534,0.475441,91424.0,91423.0,0.03722037]
[1764313017229,0.475441,91424.0,91423.0,0.01549037]
[1764313023129,0.475441,91424.0,91423.0,0.03846037]
[1764313023326,0.475441,91424.0,91423.0,0.01549037]
[1764313028135,0.586241,91424.0,91423.0,0.01549037]
[1764313028335,0.826241,91424.0,91423.0,0.01549037]
[1764313032135,1.226241,91424.0,91401.0,0.09846726]
[1764313032336,0.0109451,91389.0,91388.0,0.13810401]
[1764313032524,0.0109451,91389.0,91374.0,0.01384]
[1764313032525,0.0109468,91375.0,91374.0,0.01384]
[1764313032730,0.0109472,91372.0,91371.0,0.01384]
[1764313032930,0.0109475,91369.0,91368.0,0.01384]
[1764313033131,0.4209475,91369.0,91368.0,0.02870171]
[1764313033330,0.42106784,91369.0,91368.0,0.07430171]
[1764313035141,0.42106784,91369.0,91368.0,0.01486171]
[1764313035332,0.42106784,91369.0,91360.0,0.01384]
[1764313035529,0.0109478,91367.0,91366.0,0.04474363]
[1764313035741,0.4409478,91367.0,91366.0,0.04474363]
[1764313037243,0.4409478,91367.0,91366.0,0.00027363]
[1764313037632,0.4409478,91367.0,91366.0,0.02516363]
[1764313038140,0.4409478,91367.0,91366.0,0.04043094]
[1764313038340,0.4409478,91367.0,91366.0,0.06201094]
[1764313040834,0.0109478,91367.0,91366.0,0.06201094]
[1764313041038,0.3609478,91367.0,91366.0,0.06201094]
[1764313041247,0.2809478,91367.0,91366.0,0.06201094]
[1764313056555,0.6417478,91367.0,91366.0,0.06201094]
[1764313061165,0.67019708,91367.0,91366.0,0.06201094]
[1764313065662,0.67019708,91367.0,91366.0,0.04043094]
[1764313067261,0.67019708,91367.0,91366.0,0.01754094]
[1764313069169,0.67019708,91367.0,91366.0,0.03903094]
[1764313069669,0.67019708,91367.0,91366.0,0.06045094]
[1764313079870,0.30939708,91367.0,91366.0,0.06045094]
[1764313080175,0.67019708,91367.0,91366.0,0.06045094]
[1764313082774,0.6417478,91367.0,91366.0,0.06045094]
[1764313083278,0.2809478,91367.0,91366.0,0.06045094]
[1764313083477,0.6417478,91367.0,91366.0,0.06045094]
[1764313085279,0.2809478,91367.0,91366.0,0.06045094]
[1764313085478,0.6417478,91367.0,91366.0,0.06045094]
[1764313085976,0.2809478,91367.0,91366.0,0.06045094]
[1764313086182,0.6417478,91367.0,91366.0,0.06045094]
[1764313087271,0.2809478,91367.0,91366.0,0.06045094]
[1764313087475,0.6417478,91367.0,91366.0,0.06045094]
[1764313088782,0.6417478,91367.0,91366.0,0.06013094]
[1764313109396,0.6417478,91367.0,91366.0,0.01754094]
[1764313109797,0.6417478,91367.0,91366.0,0.06303094]
[1764313112506,0.6308,91367.0,91366.0,0.06303094]
[1764313123418,0.3608,91367.0,91366.0,0.06303094]
[1764313123608,0.3708,91367.0,91366.0,0.06303094]
[1764313125015,0.8008,91367.0,91366.0,0.06303094]
[1764313126816,0.3608,91367.0,91366.0,0.06303094]
[1764313127020,0.6208,91367.0,91366.0,0.06303094]
[1764313127723,0.6317478,91367.0,91366.0,0.06303094]
[1764313130418,0.00012034,91369.0,91368.0,0.05824]
[1764313130624,0.38012034,91369.0,91368.0,0.05824]
[1764313131527,0.39106784,91369.0,91368.0,0.05824]
[1764313132326,0.39106784,91369.0,91368.0,0.06024]
[1764313134419,0.38012034,91369.0,91368.0,0.06024]
[1764313150429,0.74092034,91369.0,91368.0,0.06024]
[1764313165146,0.74092034,91369.0,91368.0,0.03838]
[1764313165949,0.74092034,91369.0,91368.0,0.05945]
[1764313177549,0.74092034,91369.0,91368.0,0.01567]
[1764313178157,0.74092034,91369.0,91368.0,0.002]
[1764313180764,0.91328034,91369.0,91368.0,0.002]
[1764313189964,0.0109477,91368.0,91366.0,0.01554094]
[1764313190272,0.3909477,91368.0,91366.0,0.01554094]
[1764313191872,0.3909477,91368.0,91366.0,0.01754094]
[1764313203080,0.3909477,91368.0,91366.0,4e-08]
[1764313203481,0.0273222,91367.0,91366.0,4e-08]
[1764313203682,0.4273222,91367.0,91366.0,4e-08]
[1764313204183,0.42732187,91367.0,91366.0,4e-08]
[1764313204574,0.42732372,91367.0,91366.0,4e-08]
[1764313204977,0.0109486,91360.0,91359.0,0.02896701]
[1764313205177,0.9941486,91360.0,91359.0,0.02896701]
[1764313206080,0.9941486,91360.0,91359.0,0.03196701]
[1764313206283,0.9941486,91360.0,91359.0,0.05436701]
[1764313211591,0.9941486,91360.0,91359.0,0.07741701]
[1764313220397,0.3717486,91360.0,91359.0,0.07741701]
[1764313220605,0.9941486,91360.0,91359.0,0.07741701]
[1764313222801,0.4608,91360.0,91359.0,0.07741701]
[1764313223299,0.065,91360.0,91359.0,0.07741701]
[1764313223606,0.1724,91366.0,91365.0,0.05786]
[1764313223899,0.6024,91366.0,91365.0,0.05786]
[1764313224102,0.6024,91366.0,91365.0,0.068808]
[1764313225498,0.43,91366.0,91365.0,0.068808]
[1764313228095,0.43,91366.0,91365.0,0.05786]
[1764313236208,0.60236,91366.0,91365.0,0.05786]
[1764313255025,0.96316,91366.0,91365.0,0.05786]
[1764313255419,0.60236,91366.0,91365.0,0.05786]
[1764313255619,0.96316,91366.0,91365.0,0.05786]
[1764313261533,0.7908,91366.0,91365.0,0.05786]
[1764313261931,0.5308,91366.0,91365.0,0.05786]
[1764313262132,0.7508,91366.0,91365.0,0.05786]
[1764313262530,0.5008,91366.0,91365.0,0.05786]
[1764313262836,0.8108,91366.0,91365.0,0.05786]
[1764313263738,0.00012034,91369.0,91368.0,0.05792]
[1764313263939,0.0109466,91377.0,91376.0,0.0558567]
[1764313264135,0.4409466,91377.0,91376.0,0.04491]
[1764313265336,0.4429466,91377.0,91376.0,0.04491]
[1764313266539,0.8037466,91377.0,91376.0,0.04491]
[1764313269845,0.8037466,91377.0,91376.0,0.06151483]
[1764313272039,0.5828,91377.0,91376.0,0.06151483]
[1764313273951,0.5808,91377.0,91376.0,0.06151483]
[1764313274249,0.3628,91377.0,91376.0,0.06151483]
[1764313274549,0.3608,91377.0,91376.0,0.06151483]
[1764313274748,0.3628,91377.0,91376.0,0.06151483]
[1764313277452,0.002,91377.0,91376.0,0.06151483]
[1764313277652,0.36096411,91378.0,91377.0,0.0668166]
[1764313277847,0.35167595,91378.0,91377.0,0.0668166]
[1764313278053,0.3717452,91389.0,91388.0,0.04276]
[1764313278256,0.7617452,91389.0,91388.0,0.04276]
[1764313279151,0.7617452,91389.0,91388.0,0.0537053]
[1764313279343,0.7617452,91389.0,91388.0,0.04276]
[1764313280352,0.7647452,91389.0,91388.0,0.04276]
[1764313284251,0.3638,91389.0,91388.0,0.04276]
[1764313284758,0.3638,91389.0,91388.0,0.05943874]
[1764313285551,0.003,91389.0,91388.0,0.05943874]
[1764313286348,0.3608,91397.0,91396.0,0.0668143]
[1764313286549,0.7408,91397.0,91396.0,0.0668143]
[1764313287558,0.7428,91397.0,91396.0,0.0668143]
[1764313287949,0.7408,91397.0,91396.0,0.0668143]
[1764313288254,0.381,91397.0,91396.0,0.0668143]
[1764313289054,0.391,91397.0,91396.0,0.0668143]
[1764313289554,0.39,91397.0,91396.0,0.0668143]
[1764313290348,0.00016411,91398.0,91397.0,0.04276]
[1764313290553,0.17016411,91398.0,91397.0,0.04276]
[1764313291147,0.00016411,91398.0,91397.0,0.40356]
[1764313291352,0.00027351,91406.0,91405.0,0.0537032]
[1764313292354,0.3608,91416.0,91415.0,0.054042]
[1764313292552,0.7808,91416.0,91415.0,0.054042]
[1764313293852,0.7818,91416.0,91415.0,0.054042]
[1764313294455,0.3618,91416.0,91415.0,0.054042]
[1764313294659,0.4418,91416.0,91415.0,0.054042]
[1764313295253,0.4408,91416.0,91415.0,0.054042]
[1764313295460,0.4418,91416.0,91415.0,0.054042]
[1764313295960,0.7818,91416.0,91415.0,0.054042]
[1764313296348,0.7808,91416.0,91415.0,0.054042]
[1764313296547,0.7818,91416.0,91415.0,0.054042]
[1764313296954,0.7808,91416.0,91415.0,0.054042]
[1764313297155,0.7828,91416.0,91415.0,0.054042]
[1764313298157,0.7928,91416.0,91415.0,0.054042]
[1764313298665,0.7928,91416.0,91415.0,0.07044923]
[1764313299053,0.7908,91416.0,91415.0,0.07044923]
[1764313299859,0.7918,91416.0,91415.0,0.07044923]
[1764313300255,0.7908,91416.0,91415.0,0.01640723]
[1764313300557,0.010942,91415.0,91413.0,0.0329223]
[1764313300762,0.440942,91415.0,91413.0,0.04402]
[1764313300965,0.440942,91415.0,91413.0,0.02198]
[1764313301356,0.440942,91415.0,91413.0,0.0549622]
[1764313301554,0.43,91415.0,91413.0,0.0549622]
[1764313301765,0.4409421,91415.0,91413.0,0.0549622]
[1764313302160,0.3618,91416.0,91415.0,0.054962]
[1764313302465,0.00016411,91425.0,91424.0,0.0676809]
[1764313302661,0.43016411,91425.0,91424.0,0.0676809]
[1764313304766,0.43216411,91425.0,91424.0,0.0676809]
[1764313305568,0.43016411,91425.0,91424.0,0.0676809]
[1764313305966,0.13016411,91425.0,91424.0,0.0676809]
[1764313306562,0.42016411,91425.0,91424.0,0.0676809]
[1764313307269,0.18016411,91425.0,91424.0,0.0676809]
[1764313307470,0.45016411,91425.0,91424.0,0.0676809]
[1764313307669,0.45016411,91425.0,91424.0,0.0841097]
[1764313337988,0.00016411,91425.0,91424.0,0.0841097]
[1764313345492,0.3608,91430.0,91429.0,0.0547704]
[1764313346281,0.17224,91446.0,91439.0,0.0547692]
[1764313346480,0.17224,91446.0,91440.0,0.05674]
[1764313347294,0.00016405,91449.0,91448.0,0.05674]
[1764313347590,0.24016405,91449.0,91448.0,0.05674]
[1764313347781,0.24016405,91449.0,91448.0,0.0676781]
[1764313348690,0.00016405,91449.0,91448.0,0.0676781]
[1764313349788,0.00116405,91449.0,91448.0,0.0676781]
[1764313350190,0.00016405,91449.0,91448.0,0.0676781]
[1764313350390,0.00116405,91449.0,91448.0,0.0676781]
[1764313350693,0.00116405,91449.0,91448.0,0.05674]
[1764313350894,0.00116405,91449.0,91448.0,0.0676781]
[1764313352392,0.38116405,91449.0,91448.0,0.0676781]
[1764313352895,0.38016405,91449.0,91448.0,0.0676781]
[1764313353095,0.38216405,91449.0,91448.0,0.0676781]
[1764313357089,0.38016405,91449.0,91448.0,0.05674]
[1764313357400,0.38216405,91449.0,91448.0,0.01291]
[1764313358597,0.38016405,91449.0,91448.0,0.01291]
[1764313358802,0.38316405,91449.0,91448.0,0.01291]
[1764313359004,0.38416405,91449.0,91448.0,0.01291]
[1764313359394,0.38616405,91449.0,91448.0,0.01291]
[1764313359795,0.38116405,91449.0,91448.0,0.01291]
[1764313359999,0.38416405,91449.0,91448.0,0.01291]
[1764313360595,0.38316405,91449.0,91448.0,0.01291]
[1764313361805,0.38016405,91449.0,91448.0,0.01291]
[1764313362006,0.38416405,91449.0,91448.0,0.01291]
[1764313363501,0.38416405,91449.0,91444.0,0.01291]
[1764313363706,0.0109384,91445.0,91444.0,0.01291]
[1764313363899,0.3909384,91445.0,91444.0,0.03451]
[1764313364396,0.3909384,91445.0,91444.0,0.01291]
[1764313364601,0.0109389,91441.0,91440.0,0.02975466]
[1764313364801,0.8117389,91441.0,91440.0,0.05135466]
[1764313365104,0.8117389,91441.0,91440.0,0.07419466]
[1764313366399,0.8137389,91441.0,91440.0,0.07419466]
[1764313369602,0.8028,91441.0,91440.0,0.07419466]
[1764313369802,0.8028,91441.0,91440.0,0.08513366]
[1764313370404,0.8028,91441.0,91440.0,0.07419466]
[1764313372504,0.8028,91441.0,91440.0,0.02975466]
[1764313372710,0.8028,91441.0,91440.0,0.05135466]
[1764313373110,0.8028,91441.0,91440.0,0.07419466]
[1764313375305,0.442,91441.0,91440.0,0.07419466]
[1764313375508,0.8028,91441.0,91440.0,0.07419466]
[1764313382624,0.8028,91441.0,91440.0,0.05135466]
[1764313382923,0.8028,91441.0,91440.0,0.08395366]
[1764313383118,0.8028,91441.0,91440.0,0.07301466]
[1764313401330,0.442,91441.0,91440.0,0.07301466]
[1764313401530,0.8028,91441.0,91440.0,0.07301466]
[1764313412935,0.442,91441.0,91440.0,0.07301466]
[1764313413234,0.8028,91441.0,91440.0,0.07301466]
[1764313422936,0.8018,91441.0,91440.0,0.07301466]
[1764313423638,0.441,91441.0,91440.0,0.07301466]
[1764313424734,0.101,91441.0,91440.0,0.07301466]
[1764313425234,0.091,91441.0,91440.0,0.07301466]
[1764313426638,0.001,91441.0,91440.0,0.07301466]
[1764313428642,0.00016405,91449.0,91448.0,0.0552281]
[1764313428842,0.39016405,91449.0,91448.0,0.0552281]
[1764313429935,0.39116405,91449.0,91448.0,0.0552281]
[1764313430137,0.20116405,91449.0,91448.0,0.0552281]
[1764313430440,0.43116405,91449.0,91448.0,0.0552281]
[1764313432337,0.43016405,91449.0,91448.0,0.0552281]
[1764313445952,0.05016405,91449.0,91448.0,0.0552281]
[1764313448753,0.36016405,91449.0,91448.0,0.0552281]
[1764313449253,0.3608,91467.0,91466.0,0.04252]
[1764313449549,0.0109359,91466.0,91461.0,0.01378]
[1764313449748,0.4209359,91466.0,91461.0,0.01378]
[1764313449957,0.0109363,91463.0,91461.0,0.0563]
[1764313450254,0.4309363,91463.0,91461.0,0.0563]
[1764313451851,0.4339363,91463.0,91461.0,0.01378]
[1764313452254,0.4309363,91463.0,91461.0,0.01378]
[1764313452454,0.4339363,91463.0,91461.0,0.01378]
[1764313452853,0.4309363,91463.0,91461.0,0.01378]
[1764313453054,0.4339363,91463.0,91461.0,0.01378]
[1764313457362,0.4339363,91463.0,91461.0,0.02864678]
[1764313457562,0.4339363,91463.0,91461.0,0.01378]
[1764313457863,0.4349363,91463.0,91461.0,0.01378]
[1764313458259,0.4309363,91463.0,91461.0,0.01378]
[1764313458563,0.4339363,91463.0,91461.0,0.01378]
[1764313459064,0.4339363,91463.0,91461.0,0.036]
[1764313460665,0.4339363,91463.0,91461.0,0.0681865]
[1764313460867,0.4309363,91463.0,91461.0,0.0681865]
[1764313461168,0.4339363,91463.0,91461.0,0.0681865]
[1764313462173,0.4339363,91463.0,91461.0,0.08282417]
[1764313463573,0.4329363,91463.0,91461.0,0.08282417]
[1764313465182,0.4309363,91463.0,91461.0,0.08282417]
[1764313465379,0.4329363,91463.0,91461.0,0.08282417]
[1764313470187,0.4309363,91463.0,91461.0,0.07188767]
[1764313470378,0.4339363,91463.0,91461.0,0.08282407]
[1764313470583,0.4339363,91463.0,91461.0,0.07188767]
[1764313471887,0.4339363,91463.0,91461.0,0.08282407]
[1764313472084,0.4339363,91463.0,91461.0,0.07188767]
[1764313474383,0.4339363,91463.0,91462.0,0.04304]
[1764313476590,0.7947363,91463.0,91462.0,0.04304]
[1764313478587,0.7947363,91463.0,91462.0,0.0565]
[1764313487895,0.7947363,91463.0,91462.0,0.01346]
[1764313488103,0.7947363,91463.0,91461.0,0.02841767]
[1764313488104,0.82162736,91463.0,91461.0,0.01463767]
[1764313488297,0.0109365,91461.0,91452.0,0.01346]
[1764313488497,0.3717374,91454.0,91453.0,0.04320402]
[1764313488696,0.9239374,91454.0,91453.0,0.04320402]
[1764313488996,0.9239374,91454.0,91453.0,0.02146402]
[1764313489900,0.9249374,91454.0,91453.0,0.02146402]
[1764313490999,0.5449374,91454.0,91453.0,0.04320402]
[1764313491196,0.9049374,91454.0,91453.0,0.04320402]
[1764313491397,0.9049374,91454.0,91453.0,0.05792082]
[1764313498910,0.9049374,91454.0,91453.0,0.01488082]
[1764313501301,0.9049374,91454.0,91453.0,0.05792082]
[1764313503806,0.5449374,91454.0,91453.0,0.05792082]
[1764313504112,0.9249374,91454.0,91453.0,0.05792082]
[1764313504511,0.7718,91454.0,91453.0,0.05792082]
[1764313508115,0.5418,91454.0,91453.0,0.05792082]
[1764313508913,0.7618,91454.0,91453.0,0.05792082]
[1764313512217,0.4918,91454.0,91453.0,0.05792082]
[1764313512617,0.7618,91454.0,91453.0,0.05792082]
[1764313521323,0.3618,91454.0,91453.0,0.05792082]
[1764313526326,0.3608,91454.0,91453.0,0.05792082]
[1764313526526,0.3608,91454.0,91453.0,0.05892082]
[1764313526925,0.3608,91454.0,91453.0,0.05792082]
[1764313529827,0.67517322,91463.0,91462.0,0.04517]
[1764313529828,0.533,91463.0,91462.0,0.04517]
[1764313530129,0.923,91463.0,91462.0,0.0561064]
[1764313530626,0.6208,91463.0,91462.0,0.0561064]
[1764313539230,0.6218,91463.0,91462.0,0.0561064]
[1764313540129,0.6208,91463.0,91462.0,0.0561064]
[1764313540434,0.6218,91463.0,91462.0,0.0561064]
[1764313541735,0.26,91463.0,91462.0,0.0561064]
[1764313542430,0.261,91463.0,91462.0,0.0561064]
[1764313543434,0.26,91463.0,91462.0,0.0561064]
[1764313545832,0.261,91463.0,91462.0,0.0561064]
[1764313546232,0.26,91463.0,91462.0,0.0561064]
[1764313546431,0.261,91463.0,91462.0,0.0561064]
[1764313548532,0.001,91463.0,91462.0,0.0561064]
[1764313548843,0.3608,91470.0,91469.0,0.0565356]
[1764313549042,0.8008,91470.0,91469.0,0.0565356]
[1764313550141,0.8018,91470.0,91469.0,0.0565356]
[1764313551442,0.8008,91470.0,91469.0,0.0565356]
[1764313552341,0.44,91470.0,91469.0,0.0565356]
[1764313555045,0.44,91470.0,91469.0,0.07070042]
[1764313564850,0.44,91470.0,91469.0,0.05976482]
[1764313574553,0.4509354,91470.0,91469.0,0.03644482]
[1764313574760,0.4509354,91470.0,91469.0,0.01416482]
[1764313574959,0.4509354,91470.0,91467.0,0.01279]
[1764313576058,0.0109365,91461.0,91460.0,0.01283]
[1764313576260,0.7917365,91461.0,91460.0,0.03398]
[1764313577156,0.7917365,91461.0,91460.0,0.05618]
[1764313577354,0.7917365,91461.0,91460.0,0.05818]
[1764313578347,0.7917365,91461.0,91460.0,0.07142352]
[1764313585259,0.7808,91461.0,91460.0,0.07142352]
[1764313591167,0.42,91461.0,91460.0,0.07142352]
[1764313591773,0.0109358,91467.0,91466.0,0.0109359]
[1764313591969,0.3809358,91467.0,91466.0,0.0549059]
[1764313597670,0.3809358,91467.0,91466.0,0.04397]
[1764313605275,0.37,91467.0,91466.0,0.04397]
[1764313608476,0.37,91467.0,91466.0,0.05735]
[1764313610885,0.3809358,91467.0,91466.0,0.05735]
[1764313612289,0.37,91467.0,91466.0,0.05735]
[1764313626904,0.37,91467.0,91466.0,0.01338]
[1764313627602,0.37,91467.0,91466.0,0.03593]
[1764313627811,0.37,91467.0,91466.0,0.059]
[1764313643523,0.5029381,91476.0,91475.0,0.0573548]
[1764313643713,0.94296,91476.0,91475.0,0.0573548]
[1764313644610,0.94496,91476.0,91475.0,0.0573548]
[1764313647016,0.7728,91476.0,91475.0,0.0573548]
[1764313649527,0.7718,91476.0,91475.0,0.0573548]
[1764313652219,0.7718,91476.0,91475.0,0.07008056]
[1764313656332,0.411,91476.0,91475.0,0.07008056]
[1764313687565,0.411,91476.0,91475.0,0.05914576]
[1764313688450,0.411,91476.0,91475.0,0.07008056]
[1764313690361,0.4219347,91476.0,91475.0,0.07008056]
[1764313690663,0.411,91476.0,91475.0,0.07008056]
[1764313695159,0.411,91476.0,91475.0,0.05914576]
[1764313695864,0.411,91476.0,91475.0,0.07008056]
[1764313699167,0.7718,91476.0,91475.0,0.07008056]
[1764313702469,0.411,91476.0,91475.0,0.07008056]
[1764313702669,0.7718,91476.0,91475.0,0.07008056]
[1764313712278,0.411,91476.0,91475.0,0.07008056]
[1764313755902,0.411,91476.0,91475.0,0.17008056]
[1764313762007,0.001,91476.0,91475.0,0.17008056]
[1764313796446,0.001,91476.0,91475.0,0.18398056]
[1764313797550,0.451,91476.0,91475.0,0.17304576]
[1764313807456,0.8118,91476.0,91475.0,0.17304576]
[1764313822956,0.451,91476.0,91475.0,0.17304576]
[1764313823259,0.8118,91476.0,91475.0,0.17304576]
[1764313833670,0.451,91476.0,91475.0,0.17304576]
[1764313833852,0.8118,91476.0,91475.0,0.17304576]
[1764313834262,0.451,91476.0,91475.0,0.17304576]
[1764313834563,0.8118,91476.0,91475.0,0.17304576]
[1764313839161,0.451,91476.0,91475.0,0.17304576]
[1764313853678,0.001,91476.0,91475.0,0.17304576]
[1764313866502,0.3608,91479.0,91478.0,0.04656]
[1764313866706,0.7808,91479.0,91478.0,0.04656]
[1764313868103,0.7808,91479.0,91478.0,0.0574945]
[1764313868294,0.42,91479.0,91478.0,0.0574945]
[1764313868492,0.7808,91479.0,91478.0,0.0574945]
[1764313874507,0.42,91479.0,91478.0,0.0574945]
[1764313874716,0.7808,91479.0,91478.0,0.0574945]
[1764313875015,0.7818,91479.0,91478.0,0.0574945]
[1764313875508,0.7808,91479.0,91478.0,0.0574945]
[1764313875716,0.7818,91479.0,91478.0,0.0574945]
[1764313877514,0.7808,91479.0,91478.0,0.0574945]
[1764313878210,0.7818,91479.0,91478.0,0.0574945]
[1764313880419,0.7818,91479.0,91478.0,0.04656]
[1764313880613,0.7818,91479.0,91478.0,0.02331]
[1764313880917,0.7818,91479.0,91478.0,0.04517]
[1764313902425,0.421,91479.0,91478.0,0.04517]
[1764313902630,0.7818,91479.0,91478.0,0.04517]
[1764313911642,0.421,91479.0,91478.0,0.04517]
[1764313911842,0.7818,91479.0,91478.0,0.04517]
[1764313912639,0.421,91479.0,91478.0,0.04517]
[1764313912840,0.7818,91479.0,91478.0,0.04517]
[1764313913244,0.421,91479.0,91478.0,0.04517]
[1764313913543,0.7818,91479.0,91478.0,0.04517]
[1764313916344,0.7927344,91479.0,91478.0,0.0561045]
[1764313917145,0.7927344,91479.0,91478.0,0.04517]
[1764313917334,0.0109347,91476.0,91475.0,0.12662576]
[1764313917536,0.4009347,91476.0,91475.0,0.14934576]
[1764313917736,0.4009347,91476.0,91475.0,0.17143576]
[1764313918845,0.4019347,91476.0,91475.0,0.17143576]
[1764313920652,0.7518,91476.0,91475.0,0.17143576]
[1764313921040,0.7518,91476.0,91475.0,0.18237056]
[1764313921649,0.7518,91476.0,91475.0,0.10330446]
[1764313921844,0.77773283,91476.0,91475.0,0.10330446]
[1764313922047,0.77873283,91476.0,91475.0,0.10330446]
[1764313923045,0.78273283,91476.0,91475.0,0.10330446]